[Event "Titled Tuesday Blitz March 07 Late 2023"]
[White "Duda, Jan-Krzysztof"]
[Black "Zhu, Jiner"]
[WhiteFideId "1170546"]
[BlackFideId "8608059"]
[WhiteElo "2790"]
[BlackElo "2384"]
[Result "0-1"]
[Round "07"]
[TimeControl "180+2"]
[Date "2023.03.07"]
[WhiteClock "0:00:01"]
[BlackClock "0:00:01"]

1. c3 {[%clk 0:02:58]}  d5 {[%clk 0:02:59]} 2. Na3 {[%clk 0:02:57]}  c5 {[%clk 0:02:56]} 3. Nc2 {[%clk 0:02:58]}  Nc6 {[%clk 0:02:56]} 4. g3 {[%clk 0:02:58]}  e5 {[%clk 0:02:54]} 5. d3 {[%clk 0:02:58]}  Nf6 {[%clk 0:02:54]} 6. Bg2 {[%clk 0:02:53]}  Be7 {[%clk 0:02:53]} 7. Bg5 {[%clk 0:02:53]}  Be6 {[%clk 0:02:51]} 8. Nf3 {[%clk 0:02:53]}  O-O {[%clk 0:02:48]} 9. O-O {[%clk 0:02:53]}  h6 {[%clk 0:02:48]} 10. Bxf6 {[%clk 0:02:53]}  Bxf6 {[%clk 0:02:48]} 11. e4 {[%clk 0:02:54]}  d4 {[%clk 0:02:46]} 12. c4 {[%clk 0:02:52]}  a6 {[%clk 0:02:46]} 13. b3 {[%clk 0:02:51]}  b5 {[%clk 0:02:45]} 14. h4 {[%clk 0:02:50]}  Rb8 {[%clk 0:02:42]} 15. Kh2 {[%clk 0:02:50]}  Qd7 {[%clk 0:02:41]} 16. Ng1 {[%clk 0:02:50]}  bxc4 {[%clk 0:02:39]} 17. bxc4 {[%clk 0:02:43]}  Rb2 {[%clk 0:02:38]} 18. Bh3 {[%clk 0:02:40]}  Rfb8 {[%clk 0:02:34]} 19. Bxe6 {[%clk 0:02:39]}  Qxe6 {[%clk 0:02:31]} 20. Nf3 {[%clk 0:02:38]}  Bd8 {[%clk 0:02:31]} 21. Nd2 {[%clk 0:02:34]}  Qf6 {[%clk 0:01:26]} 22. Kg2 {[%clk 0:02:31]}  Ba5 {[%clk 0:00:59]} 23. Nb3 {[%clk 0:02:29]}  Qe7 {[%clk 0:00:58]} 24. Nxa5 {[%clk 0:01:29]}  Nxa5 {[%clk 0:00:59]} 25. Qc1 {[%clk 0:01:24]}  Nc6 {[%clk 0:00:55]} 26. Rd1 {[%clk 0:01:21]}  R8b6 {[%clk 0:00:48]} 27. Rd2 {[%clk 0:01:12]}  Qb7 {[%clk 0:00:47]} 28. h5 {[%clk 0:01:10]}  a5 {[%clk 0:00:35]} 29. Re2 {[%clk 0:01:08]}  a4 {[%clk 0:00:35]} 30. Rd2 {[%clk 0:00:45]}  Rb1 {[%clk 0:00:25]} 31. Rxb1 {[%clk 0:00:44]}  Rxb1 {[%clk 0:00:26]} 32. Qa3 {[%clk 0:00:45]}  Qb2 {[%clk 0:00:25]} 33. Qxb2 {[%clk 0:00:12]}  Rxb2 {[%clk 0:00:25]} 34. a3 {[%clk 0:00:13]}  Nb4 {[%clk 0:00:11]} 35. axb4 {[%clk 0:00:12]}  cxb4 {[%clk 0:00:12]} 36. c5 {[%clk 0:00:12]}  b3 {[%clk 0:00:12]} 37. Na3 {[%clk 0:00:13]}  Rxd2 {[%clk 0:00:12]} 38. c6 {[%clk 0:00:13]}  Rc2 {[%clk 0:00:08]} 39. Nc4 {[%clk 0:00:13]}  b2 {[%clk 0:00:06]} 40. c7 {[%clk 0:00:12]}  b1=Q {[%clk 0:00:06]} 41. c8=Q+ {[%clk 0:00:12]}  Kh7 {[%clk 0:00:07]} 42. Qf5+ {[%clk 0:00:13]}  Kg8 {[%clk 0:00:07]} 43. Qc8+ {[%clk 0:00:09]}  Kh7 {[%clk 0:00:07]} 44. Qf5+ {[%clk 0:00:09]}  Kg8 {[%clk 0:00:08]} 45. Nd6 {[%clk 0:00:05]}  Qb3 {[%clk 0:00:06]} 46. Qxe5 {[%clk 0:00:04]}  Qe6 {[%clk 0:00:05]} 47. Qxd4 {[%clk 0:00:03]}  a3 {[%clk 0:00:05]} 48. Nf5 {[%clk 0:00:01]}  Qf6 {[%clk 0:00:05]} 49. Qa4 {[%clk 0:00:01]}  a2 {[%clk 0:00:02]} 50. Qxc2 {[%clk 0:00:01]}  a1=Q {[%clk 0:00:01]} 51. d4 {[%clk 0:00:01]}  Qa8 {[%clk 0:00:01]} 52. d5 {[%clk 0:00:01]}  Qf8 {[%clk 0:00:01]} 53. Qd2 {[%clk 0:00:01]}  Q8d8 {[%clk 0:00:02]} 54. Qf4 {[%clk 0:00:01]}  Kh8 {[%clk 0:00:01]} 0-1


[Site "https://www.chess.com"]

[Event "Titled Tuesday Blitz March 07 Late 2023"]
[White "Skvortsov, Andrei"]
[Black "Kramnik, Vladimir"]
[WhiteFideId "24108600"]
[BlackFideId "4101588"]
[WhiteElo "2259"]
[BlackElo "2712"]
[Result "1-0"]
[Round "07"]
[TimeControl "180+2"]
[Date "2023.03.07"]
[WhiteClock "0:00:12"]
[BlackClock "0:00:05"]

1. e4 {[%clk 0:03:00]}  c5 {[%clk 0:02:59]} 2. d4 {[%clk 0:02:59]}  cxd4 {[%clk 0:02:58]} 3. Qxd4 {[%clk 0:03:00]}  Nc6 {[%clk 0:02:57]} 4. Qd3 {[%clk 0:03:00]}  Nf6 {[%clk 0:02:56]} 5. Nc3 {[%clk 0:03:00]}  g6 {[%clk 0:02:55]} 6. Nf3 {[%clk 0:03:00]}  Bg7 {[%clk 0:02:53]} 7. Be2 {[%clk 0:03:01]}  O-O {[%clk 0:02:52]} 8. O-O {[%clk 0:03:01]}  d6 {[%clk 0:02:52]} 9. Nd5 {[%clk 0:03:02]}  Bg4 {[%clk 0:02:45]} 10. c3 {[%clk 0:03:01]}  Nd7 {[%clk 0:02:40]} 11. Bf4 {[%clk 0:02:36]}  Rc8 {[%clk 0:02:36]} 12. h3 {[%clk 0:02:35]}  Bxf3 {[%clk 0:02:35]} 13. Qxf3 {[%clk 0:02:36]}  e6 {[%clk 0:02:29]} 14. Ne3 {[%clk 0:02:27]}  Nce5 {[%clk 0:02:26]} 15. Qg3 {[%clk 0:02:23]}  Nc5 {[%clk 0:02:26]} 16. f3 {[%clk 0:02:18]}  Qb6 {[%clk 0:02:26]} 17. Rab1 {[%clk 0:02:14]}  Ncd3 {[%clk 0:02:22]} 18. Kh1 {[%clk 0:01:59]}  Nxf4 {[%clk 0:02:22]} 19. Qxf4 {[%clk 0:01:59]}  h6 {[%clk 0:02:22]} 20. Nc2 {[%clk 0:01:56]}  g5 {[%clk 0:02:19]} 21. Qd2 {[%clk 0:01:56]}  Ng6 {[%clk 0:02:17]} 22. g3 {[%clk 0:01:56]}  Rcd8 {[%clk 0:02:09]} 23. Ne3 {[%clk 0:01:54]}  Be5 {[%clk 0:02:05]} 24. Nc4 {[%clk 0:01:53]}  Qc6 {[%clk 0:02:02]} 25. Nxe5 {[%clk 0:01:51]}  dxe5 {[%clk 0:02:01]} 26. Qe3 {[%clk 0:01:52]}  b6 {[%clk 0:02:00]} 27. Rfd1 {[%clk 0:01:39]}  Kg7 {[%clk 0:02:00]} 28. Kg1 {[%clk 0:01:32]}  Kf6 {[%clk 0:01:54]} 29. Kf2 {[%clk 0:01:29]}  h5 {[%clk 0:01:48]} 30. Rxd8 {[%clk 0:01:12]}  Rxd8 {[%clk 0:01:47]} 31. Rd1 {[%clk 0:01:12]}  Rxd1 {[%clk 0:01:45]} 32. Bxd1 {[%clk 0:01:13]}  h4 {[%clk 0:01:45]} 33. gxh4 {[%clk 0:01:14]}  gxh4 {[%clk 0:01:44]} 34. Be2 {[%clk 0:01:05]}  Nf4 {[%clk 0:01:43]} 35. Bf1 {[%clk 0:01:05]}  Qd6 {[%clk 0:01:39]} 36. Ke1 {[%clk 0:01:03]}  Qd8 {[%clk 0:01:34]} 37. Qf2 {[%clk 0:01:02]}  Ng6 {[%clk 0:01:26]} 38. Qe3 {[%clk 0:00:56]}  Kg7 {[%clk 0:01:23]} 39. a4 {[%clk 0:00:50]}  f5 {[%clk 0:01:20]} 40. a5 {[%clk 0:00:41]}  Kf6 {[%clk 0:01:19]} 41. axb6 {[%clk 0:00:39]}  axb6 {[%clk 0:01:18]} 42. Qd2 {[%clk 0:00:33]}  Qc7 {[%clk 0:01:12]} 43. Qe3 {[%clk 0:00:30]}  Qa7 {[%clk 0:01:10]} 44. Qd2 {[%clk 0:00:29]}  Qc7 {[%clk 0:01:00]} 45. Kf2 {[%clk 0:00:25]}  Nf4 {[%clk 0:00:56]} 46. Ke1 {[%clk 0:00:21]}  Qg7 {[%clk 0:00:53]} 47. Qd8+ {[%clk 0:00:19]}  Qe7 {[%clk 0:00:39]} 48. Qh8+ {[%clk 0:00:19]}  Kg6 {[%clk 0:00:35]} 49. Qg8+ {[%clk 0:00:19]}  Qg7 {[%clk 0:00:32]} 50. Qd8 {[%clk 0:00:18]}  Kh5 {[%clk 0:00:30]} 51. Qxb6 {[%clk 0:00:18]}  fxe4 {[%clk 0:00:23]} 52. fxe4 {[%clk 0:00:15]}  Nxh3 {[%clk 0:00:19]} 53. Be2+ {[%clk 0:00:10]}  Kg5 {[%clk 0:00:16]} 54. Qxe6 {[%clk 0:00:10]}  Nf4 {[%clk 0:00:09]} 55. Qg4+ {[%clk 0:00:11]}  Kf6 {[%clk 0:00:09]} 56. Qxh4+ {[%clk 0:00:11]}  Ke6 {[%clk 0:00:09]} 57. Qg4+ {[%clk 0:00:11]}  Qxg4 {[%clk 0:00:08]} 58. Bxg4+ {[%clk 0:00:12]}  Kd6 {[%clk 0:00:08]} 59. Kd2 {[%clk 0:00:13]}  Kc5 {[%clk 0:00:08]} 60. b4+ {[%clk 0:00:13]}  Kc4 {[%clk 0:00:08]} 61. Kc2 {[%clk 0:00:13]}  Kb5 {[%clk 0:00:06]} 62. Kb3 {[%clk 0:00:13]}  Kb6 {[%clk 0:00:05]} 63. c4 {[%clk 0:00:12]} 1-0


[Site "https://www.chess.com"]

[Event "Titled Tuesday Blitz March 07 Late 2023"]
[White "Guzman, Christopher"]
[Black "Zhigalko, Sergei"]
[WhiteFideId "6405096"]
[BlackFideId "13502956"]
[WhiteElo "2281"]
[BlackElo "2626"]
[Result "0-1"]
[Round "07"]
[TimeControl "180+2"]
[Date "2023.03.07"]
[WhiteClock "0:00:04"]
[BlackClock "0:00:06"]

1. e4 {[%clk 0:03:00]}  c5 {[%clk 0:02:59]} 2. Nf3 {[%clk 0:03:00]}  Nc6 {[%clk 0:02:57]} 3. d4 {[%clk 0:03:00]}  cxd4 {[%clk 0:02:58]} 4. Nxd4 {[%clk 0:03:01]}  Nf6 {[%clk 0:02:58]} 5. Nc3 {[%clk 0:03:01]}  e5 {[%clk 0:02:58]} 6. Ndb5 {[%clk 0:03:01]}  d6 {[%clk 0:02:58]} 7. Bg5 {[%clk 0:03:01]}  a6 {[%clk 0:02:58]} 8. Na3 {[%clk 0:03:01]}  b5 {[%clk 0:02:59]} 9. Nd5 {[%clk 0:03:02]}  Be7 {[%clk 0:02:59]} 10. Bxf6 {[%clk 0:03:03]}  Bxf6 {[%clk 0:02:59]} 11. c3 {[%clk 0:03:03]}  Bg5 {[%clk 0:02:59]} 12. Nc2 {[%clk 0:03:04]}  Ne7 {[%clk 0:02:59]} 13. a4 {[%clk 0:03:03]}  bxa4 {[%clk 0:02:59]} 14. Rxa4 {[%clk 0:03:00]}  Nxd5 {[%clk 0:02:51]} 15. Qxd5 {[%clk 0:02:58]}  Be6 {[%clk 0:02:51]} 16. Qd1 {[%clk 0:02:51]}  Qb6 {[%clk 0:02:25]} 17. Nb4 {[%clk 0:02:40]}  a5 {[%clk 0:02:14]} 18. Nd5 {[%clk 0:02:39]}  Qxb2 {[%clk 0:02:06]} 19. Bb5+ {[%clk 0:02:08]}  Kf8 {[%clk 0:02:04]} 20. c4 {[%clk 0:02:02]}  g6 {[%clk 0:01:47]} 21. O-O {[%clk 0:01:58]}  Kg7 {[%clk 0:01:44]} 22. Nc7 {[%clk 0:01:58]}  Rad8 {[%clk 0:01:29]} 23. Nxe6+ {[%clk 0:01:55]}  fxe6 {[%clk 0:01:29]} 24. Rxa5 {[%clk 0:01:55]}  Rhf8 {[%clk 0:01:13]} 25. Ra7+ {[%clk 0:01:51]}  Kh8 {[%clk 0:01:06]} 26. Qa1 {[%clk 0:01:39]}  Qd2 {[%clk 0:00:44]} 27. Qd1 {[%clk 0:01:21]}  Rxf2 {[%clk 0:00:32]} 28. Qxd2 {[%clk 0:01:10]}  Rxd2 {[%clk 0:00:17]} 29. Raf7 {[%clk 0:00:44]}  Be3+ {[%clk 0:00:15]} 30. Kh1 {[%clk 0:00:44]}  Ra8 {[%clk 0:00:10]} 31. Rf8+ {[%clk 0:00:42]}  Rxf8 {[%clk 0:00:09]} 32. Rxf8+ {[%clk 0:00:43]}  Kg7 {[%clk 0:00:10]} 33. Rf1 {[%clk 0:00:43]}  Rc2 {[%clk 0:00:05]} 34. g3 {[%clk 0:00:40]}  h5 {[%clk 0:00:05]} 35. h4 {[%clk 0:00:33]}  Bc5 {[%clk 0:00:05]} 36. Rf3 {[%clk 0:00:30]}  Re2 {[%clk 0:00:04]} 37. Bc6 {[%clk 0:00:29]}  Bd4 {[%clk 0:00:04]} 38. Bd7 {[%clk 0:00:26]}  Rxe4 {[%clk 0:00:03]} 39. Bxe6 {[%clk 0:00:26]}  Re1+ {[%clk 0:00:03]} 40. Kg2 {[%clk 0:00:26]}  Re2+ {[%clk 0:00:03]} 41. Kh1 {[%clk 0:00:25]}  Re1+ {[%clk 0:00:03]} 42. Kg2 {[%clk 0:00:26]}  e4 {[%clk 0:00:04]} 43. Rf7+ {[%clk 0:00:26]}  Kh6 {[%clk 0:00:04]} 44. Rd7 {[%clk 0:00:23]}  Re2+ {[%clk 0:00:04]} 45. Kh1 {[%clk 0:00:23]}  Re1+ {[%clk 0:00:04]} 46. Kg2 {[%clk 0:00:23]}  Re2+ {[%clk 0:00:04]} 47. Kh1 {[%clk 0:00:23]}  Be5 {[%clk 0:00:05]} 48. Bg8 {[%clk 0:00:22]}  g5 {[%clk 0:00:05]} 49. Rh7+ {[%clk 0:00:20]}  Kg6 {[%clk 0:00:05]} 50. hxg5 {[%clk 0:00:19]}  Bxg3 {[%clk 0:00:06]} 51. Rh8 {[%clk 0:00:16]}  h4 {[%clk 0:00:06]} 52. Kg1 {[%clk 0:00:12]}  Kxg5 {[%clk 0:00:06]} 53. Bd5 {[%clk 0:00:12]}  e3 {[%clk 0:00:06]} 54. Re8 {[%clk 0:00:11]}  h3 {[%clk 0:00:05]} 55. Rg8+ {[%clk 0:00:08]}  Kf4 {[%clk 0:00:05]} 56. Rf8+ {[%clk 0:00:08]}  Ke5 {[%clk 0:00:06]} 57. Re8+ {[%clk 0:00:04]}  Kd4 {[%clk 0:00:06]} 58. Re4+ {[%clk 0:00:04]}  Kd3 {[%clk 0:00:06]} 0-1


[Site "https://www.chess.com"]

[Event "Titled Tuesday Blitz March 07 Late 2023"]
[White "Oro, Faustino"]
[Black "Baskakov, Egor"]
[WhiteFideId "20000197"]
[BlackFideId "24197866"]
[WhiteElo "1984"]
[BlackElo "2212"]
[Result "1/2-1/2"]
[Round "07"]
[TimeControl "180+2"]
[Date "2023.03.07"]
[WhiteClock "0:00:22"]
[BlackClock "0:01:09"]

1. e4 {[%clk 0:03:00]}  c5 {[%clk 0:02:59]} 2. Nf3 {[%clk 0:03:00]}  Nf6 {[%clk 0:03:00]} 3. e5 {[%clk 0:02:56]}  Nd5 {[%clk 0:03:00]} 4. Nc3 {[%clk 0:02:55]}  e6 {[%clk 0:03:00]} 5. Be2 {[%clk 0:02:46]}  Nc6 {[%clk 0:03:01]} 6. O-O {[%clk 0:02:46]}  d6 {[%clk 0:03:01]} 7. exd6 {[%clk 0:02:46]}  Bxd6 {[%clk 0:03:02]} 8. Re1 {[%clk 0:02:31]}  O-O {[%clk 0:03:02]} 9. Bb5 {[%clk 0:02:28]}  Bd7 {[%clk 0:02:57]} 10. Ne4 {[%clk 0:02:27]}  Be7 {[%clk 0:02:57]} 11. c3 {[%clk 0:02:19]}  Qb6 {[%clk 0:02:47]} 12. Bxc6 {[%clk 0:02:14]}  Bxc6 {[%clk 0:02:48]} 13. d4 {[%clk 0:02:12]}  Rad8 {[%clk 0:02:44]} 14. dxc5 {[%clk 0:02:10]}  Bxc5 {[%clk 0:02:45]} 15. Nxc5 {[%clk 0:02:04]}  Qxc5 {[%clk 0:02:46]} 16. Qd4 {[%clk 0:02:00]}  Qxd4 {[%clk 0:02:45]} 17. Nxd4 {[%clk 0:02:00]}  Rc8 {[%clk 0:02:42]} 18. Be3 {[%clk 0:01:48]}  Nxe3 {[%clk 0:02:41]} 19. Rxe3 {[%clk 0:01:48]}  Rfd8 {[%clk 0:02:39]} 20. Kf1 {[%clk 0:01:44]}  b6 {[%clk 0:02:35]} 21. g3 {[%clk 0:01:39]}  Bb7 {[%clk 0:02:32]} 22. Ke1 {[%clk 0:01:37]}  Rd5 {[%clk 0:02:30]} 23. Rd1 {[%clk 0:01:21]}  e5 {[%clk 0:02:16]} 24. Nf5 {[%clk 0:01:14]}  Rxd1+ {[%clk 0:02:16]} 25. Kxd1 {[%clk 0:01:15]}  Rd8+ {[%clk 0:02:16]} 26. Ke1 {[%clk 0:01:15]}  f6 {[%clk 0:02:16]} 27. f4 {[%clk 0:01:02]}  g6 {[%clk 0:02:14]} 28. Nh6+ {[%clk 0:00:51]}  Kg7 {[%clk 0:02:13]} 29. Ng4 {[%clk 0:00:52]}  e4 {[%clk 0:02:13]} 30. Nf2 {[%clk 0:00:49]}  f5 {[%clk 0:02:14]} 31. g4 {[%clk 0:00:49]}  b5 {[%clk 0:02:06]} 32. gxf5 {[%clk 0:00:49]}  gxf5 {[%clk 0:02:07]} 33. Rg3+ {[%clk 0:00:50]}  Kf6 {[%clk 0:02:06]} 34. Rh3 {[%clk 0:00:50]}  Rd7 {[%clk 0:01:56]} 35. Rh6+ {[%clk 0:00:50]}  Kg7 {[%clk 0:01:56]} 36. Re6 {[%clk 0:00:47]}  a6 {[%clk 0:01:51]} 37. Nd1 {[%clk 0:00:43]}  Bc8 {[%clk 0:01:43]} 38. Rc6 {[%clk 0:00:40]}  Rd8 {[%clk 0:01:39]} 39. Ne3 {[%clk 0:00:37]}  Kf7 {[%clk 0:01:37]} 40. Ke2 {[%clk 0:00:36]}  h5 {[%clk 0:01:18]} 41. Rc7+ {[%clk 0:00:31]}  Kg6 {[%clk 0:01:17]} 42. Rc6+ {[%clk 0:00:31]}  Kg7 {[%clk 0:01:16]} 43. Rc7+ {[%clk 0:00:26]}  Kf6 {[%clk 0:01:15]} 44. Rc6+ {[%clk 0:00:26]}  Kg7 {[%clk 0:01:08]} 45. Rc7+ {[%clk 0:00:23]}  Kf6 {[%clk 0:01:09]} 46. Rc6+ {[%clk 0:00:22]}  Kg7 {[%clk 0:01:09]} 1/2-1/2


[Site "https://www.chess.com"]

[Event "Titled Tuesday Blitz March 07 Late 2023"]
[White "Czernek, Tymon"]
[Black "Melkumyan, Hrant"]
[WhiteFideId "1199510"]
[BlackFideId "13302485"]
[WhiteElo "2156"]
[BlackElo "2604"]
[Result "0-1"]
[Round "07"]
[TimeControl "180+2"]
[Date "2023.03.07"]
[WhiteClock "0:01:13"]
[BlackClock "0:01:42"]

1. e4 {[%clk 0:03:00]}  c6 {[%clk 0:02:59]} 2. d4 {[%clk 0:03:00]}  d5 {[%clk 0:03:00]} 3. f3 {[%clk 0:03:01]}  e6 {[%clk 0:03:00]} 4. Nc3 {[%clk 0:03:01]}  Bb4 {[%clk 0:03:00]} 5. Bd2 {[%clk 0:03:00]}  Ne7 {[%clk 0:03:00]} 6. Bd3 {[%clk 0:02:58]}  Nd7 {[%clk 0:02:55]} 7. e5 {[%clk 0:02:57]}  b6 {[%clk 0:02:47]} 8. f4 {[%clk 0:02:53]}  a5 {[%clk 0:02:47]} 9. Nf3 {[%clk 0:02:51]}  Ba6 {[%clk 0:02:44]} 10. Bxa6 {[%clk 0:02:50]}  Rxa6 {[%clk 0:02:45]} 11. a3 {[%clk 0:02:49]}  Bxc3 {[%clk 0:02:45]} 12. Bxc3 {[%clk 0:02:49]}  c5 {[%clk 0:02:45]} 13. O-O {[%clk 0:02:46]}  Qc8 {[%clk 0:02:37]} 14. Kh1 {[%clk 0:02:45]}  Nf5 {[%clk 0:02:33]} 15. g4 {[%clk 0:02:35]}  Ne3 {[%clk 0:02:32]} 16. Qe2 {[%clk 0:02:33]}  Nxf1 {[%clk 0:02:32]} 17. Rxf1 {[%clk 0:02:33]}  h5 {[%clk 0:02:32]} 18. gxh5 {[%clk 0:02:30]}  Rxh5 {[%clk 0:02:30]} 19. Ng5 {[%clk 0:02:30]}  g6 {[%clk 0:02:31]} 20. Nf3 {[%clk 0:02:20]}  cxd4 {[%clk 0:02:27]} 21. Nxd4 {[%clk 0:02:21]}  Qc4 {[%clk 0:02:27]} 22. Qf3 {[%clk 0:02:17]}  Ra8 {[%clk 0:02:21]} 23. b3 {[%clk 0:02:17]}  Qa6 {[%clk 0:02:16]} 24. a4 {[%clk 0:02:15]}  Rc8 {[%clk 0:02:05]} 25. Nb5 {[%clk 0:02:14]}  Kf8 {[%clk 0:02:00]} 26. Rg1 {[%clk 0:02:13]}  Nc5 {[%clk 0:01:54]} 27. Bb2 {[%clk 0:02:08]}  Ne4 {[%clk 0:01:46]} 28. Ba3+ {[%clk 0:02:08]}  Kg7 {[%clk 0:01:45]} 29. c4 {[%clk 0:01:36]}  Rch8 {[%clk 0:01:44]} 30. Rg2 {[%clk 0:01:35]}  Rh3 {[%clk 0:01:42]} 31. Qg4 {[%clk 0:01:16]}  Rxh2+ {[%clk 0:01:42]} 32. Kg1 {[%clk 0:01:13]}  Rh1# {[%clk 0:01:42]} 0-1


[Site "https://www.chess.com"]

[Event "Titled Tuesday Blitz March 07 Late 2023"]
[White "Mustafayev, Farid"]
[Black "Holt, Conrad"]
[WhiteFideId "13408771"]
[BlackFideId "2034387"]
[WhiteElo "2269"]
[BlackElo "2592"]
[Result "0-1"]
[Round "07"]
[TimeControl "180+2"]
[Date "2023.03.07"]
[WhiteClock "0:00:15"]
[BlackClock "0:01:37"]

1. d4 {[%clk 0:02:58]}  d5 {[%clk 0:02:59]} 2. c4 {[%clk 0:02:58]}  c6 {[%clk 0:02:59]} 3. Nf3 {[%clk 0:02:58]}  Nf6 {[%clk 0:02:59]} 4. e3 {[%clk 0:02:59]}  Bf5 {[%clk 0:02:59]} 5. Nbd2 {[%clk 0:02:59]}  h6 {[%clk 0:02:56]} 6. b3 {[%clk 0:02:59]}  e6 {[%clk 0:02:56]} 7. Bb2 {[%clk 0:02:59]}  Nbd7 {[%clk 0:02:56]} 8. Be2 {[%clk 0:03:00]}  Bd6 {[%clk 0:02:56]} 9. O-O {[%clk 0:03:00]}  Qb8 {[%clk 0:02:56]} 10. Rc1 {[%clk 0:02:55]}  O-O {[%clk 0:02:55]} 11. h3 {[%clk 0:02:42]}  a5 {[%clk 0:02:48]} 12. Nh4 {[%clk 0:02:28]}  Bh7 {[%clk 0:02:46]} 13. f4 {[%clk 0:02:29]}  a4 {[%clk 0:02:41]} 14. c5 {[%clk 0:02:28]}  Be7 {[%clk 0:02:41]} 15. b4 {[%clk 0:02:28]}  Ne4 {[%clk 0:02:41]} 16. Nhf3 {[%clk 0:02:19]}  Ng3 {[%clk 0:02:41]} 17. Re1 {[%clk 0:02:18]}  Nxe2+ {[%clk 0:02:40]} 18. Qxe2 {[%clk 0:02:17]}  b6 {[%clk 0:02:32]} 19. cxb6 {[%clk 0:02:08]}  a3 {[%clk 0:02:26]} 20. Ba1 {[%clk 0:02:05]}  Qxb6 {[%clk 0:02:25]} 21. Ne5 {[%clk 0:01:41]}  Nxe5 {[%clk 0:02:24]} 22. fxe5 {[%clk 0:01:40]}  Bxb4 {[%clk 0:02:22]} 23. Rf1 {[%clk 0:01:35]}  Qb5 {[%clk 0:02:15]} 24. Qf2 {[%clk 0:01:26]}  Bd3 {[%clk 0:02:10]} 25. Rfe1 {[%clk 0:01:24]}  Rac8 {[%clk 0:02:04]} 26. Bc3 {[%clk 0:01:21]}  f6 {[%clk 0:02:01]} 27. Qg3 {[%clk 0:01:07]}  fxe5 {[%clk 0:01:57]} 28. Qxe5 {[%clk 0:01:06]}  Rf6 {[%clk 0:01:48]} 29. Bxb4 {[%clk 0:00:44]}  Qxb4 {[%clk 0:01:47]} 30. Nb3 {[%clk 0:00:45]}  Bc4 {[%clk 0:01:45]} 31. Nc5 {[%clk 0:00:41]}  Qd2 {[%clk 0:01:39]} 32. h4 {[%clk 0:00:15]}  Qf2+ {[%clk 0:01:37]} 0-1


[Site "https://www.chess.com"]

[Event "Titled Tuesday Blitz March 07 Late 2023"]
[White "Harsh Suresh"]
[Black "Gerzhoy, Leonid"]
[WhiteFideId "45018464"]
[BlackFideId "2806126"]
[WhiteElo "2227"]
[BlackElo "2604"]
[Result "0-1"]
[Round "07"]
[TimeControl "180+2"]
[Date "2023.03.07"]
[WhiteClock "0:00:10"]
[BlackClock "0:00:32"]

1. e4 {[%clk 0:03:00]}  d6 {[%clk 0:02:59]} 2. d4 {[%clk 0:02:59]}  Nf6 {[%clk 0:02:59]} 3. Nc3 {[%clk 0:02:59]}  e5 {[%clk 0:02:58]} 4. dxe5 {[%clk 0:02:56]}  dxe5 {[%clk 0:02:58]} 5. Qxd8+ {[%clk 0:02:57]}  Kxd8 {[%clk 0:02:57]} 6. Bg5 {[%clk 0:02:54]}  Be6 {[%clk 0:02:56]} 7. O-O-O+ {[%clk 0:02:51]}  Nd7 {[%clk 0:02:56]} 8. f3 {[%clk 0:02:48]}  c6 {[%clk 0:02:53]} 9. g3 {[%clk 0:02:36]}  h6 {[%clk 0:02:48]} 10. Bxf6+ {[%clk 0:02:34]}  gxf6 {[%clk 0:02:47]} 11. Bh3 {[%clk 0:02:35]}  Kc7 {[%clk 0:02:46]} 12. Bf5 {[%clk 0:02:12]}  h5 {[%clk 0:02:37]} 13. Nge2 {[%clk 0:02:12]}  h4 {[%clk 0:02:36]} 14. g4 {[%clk 0:02:11]}  Nc5 {[%clk 0:02:16]} 15. b3 {[%clk 0:01:54]}  Bh6+ {[%clk 0:02:12]} 16. Kb2 {[%clk 0:01:54]}  Rad8 {[%clk 0:02:12]} 17. h3 {[%clk 0:01:38]}  Rxd1 {[%clk 0:02:05]} 18. Rxd1 {[%clk 0:01:37]}  Rd8 {[%clk 0:02:05]} 19. Rxd8 {[%clk 0:01:16]}  Kxd8 {[%clk 0:02:05]} 20. b4 {[%clk 0:01:17]}  Nd7 {[%clk 0:02:04]} 21. Bxe6 {[%clk 0:01:03]}  fxe6 {[%clk 0:02:02]} 22. a4 {[%clk 0:01:00]}  Nf8 {[%clk 0:01:54]} 23. Nd1 {[%clk 0:00:59]}  Nh7 {[%clk 0:01:53]} 24. Kc3 {[%clk 0:00:51]}  Ng5 {[%clk 0:01:42]} 25. Ng1 {[%clk 0:00:51]}  Kc7 {[%clk 0:01:34]} 26. Kd3 {[%clk 0:00:50]}  b5 {[%clk 0:01:28]} 27. axb5 {[%clk 0:00:45]}  cxb5 {[%clk 0:01:28]} 28. Ne3 {[%clk 0:00:46]}  Nf7 {[%clk 0:01:23]} 29. Ng2 {[%clk 0:00:45]}  Bg5 {[%clk 0:01:22]} 30. Ne2 {[%clk 0:00:43]}  Kb6 {[%clk 0:01:21]} 31. Nc3 {[%clk 0:00:21]}  a5 {[%clk 0:01:19]} 32. bxa5+ {[%clk 0:00:22]}  Kxa5 {[%clk 0:01:19]} 33. Ne2 {[%clk 0:00:23]}  Kb4 {[%clk 0:01:14]} 34. Nc3 {[%clk 0:00:16]}  Kc5 {[%clk 0:01:13]} 35. Ne2 {[%clk 0:00:16]}  b4 {[%clk 0:01:11]} 36. Ng1 {[%clk 0:00:15]}  Kb5 {[%clk 0:01:09]} 37. Ne2 {[%clk 0:00:15]}  Nd6 {[%clk 0:01:07]} 38. f4 {[%clk 0:00:15]}  exf4 {[%clk 0:01:04]} 39. Nexf4 {[%clk 0:00:15]}  Bxf4 {[%clk 0:00:54]} 40. Nxf4 {[%clk 0:00:16]}  e5 {[%clk 0:00:53]} 41. Ng2 {[%clk 0:00:15]}  Nf7 {[%clk 0:00:53]} 42. Nxh4 {[%clk 0:00:15]}  Ng5 {[%clk 0:00:53]} 43. Nf5 {[%clk 0:00:10]}  Nxh3 {[%clk 0:00:52]} 44. Ke3 {[%clk 0:00:09]}  Kc4 {[%clk 0:00:51]} 45. Kd2 {[%clk 0:00:04]}  Nf2 {[%clk 0:00:50]} 46. Ne3+ {[%clk 0:00:03]}  Kd4 {[%clk 0:00:49]} 47. Nf5+ {[%clk 0:00:03]}  Kxe4 {[%clk 0:00:49]} 48. Nd6+ {[%clk 0:00:03]}  Kf4 {[%clk 0:00:48]} 49. Ne8 {[%clk 0:00:03]}  Nxg4 {[%clk 0:00:47]} 50. Nc7 {[%clk 0:00:04]}  e4 {[%clk 0:00:45]} 51. Nd5+ {[%clk 0:00:04]}  Kf3 {[%clk 0:00:45]} 52. Nxb4 {[%clk 0:00:04]}  Kf2 {[%clk 0:00:44]} 53. c4 {[%clk 0:00:03]}  e3+ {[%clk 0:00:44]} 54. Kc3 {[%clk 0:00:02]}  e2 {[%clk 0:00:43]} 55. Nd3+ {[%clk 0:00:02]}  Kf1 {[%clk 0:00:42]} 56. Kd2 {[%clk 0:00:02]}  Ne5 {[%clk 0:00:40]} 57. Ne1 {[%clk 0:00:01]}  Nxc4+ {[%clk 0:00:39]} 58. Kd3 {[%clk 0:00:01]}  Kxe1 {[%clk 0:00:38]} 59. Kxc4 {[%clk 0:00:02]}  Kd2 {[%clk 0:00:38]} 60. Kd4 {[%clk 0:00:02]}  e1=Q {[%clk 0:00:37]} 61. Kc4 {[%clk 0:00:03]}  f5 {[%clk 0:00:37]} 62. Kd4 {[%clk 0:00:04]}  f4 {[%clk 0:00:37]} 63. Kc5 {[%clk 0:00:05]}  f3 {[%clk 0:00:36]} 64. Kd4 {[%clk 0:00:06]}  f2 {[%clk 0:00:36]} 65. Kc4 {[%clk 0:00:07]}  f1=Q+ {[%clk 0:00:36]} 66. Kd5 {[%clk 0:00:07]}  Qd3+ {[%clk 0:00:35]} 67. Kc5 {[%clk 0:00:07]}  Qc1+ {[%clk 0:00:34]} 68. Kb4 {[%clk 0:00:08]}  Qdb1+ {[%clk 0:00:33]} 69. Ka4 {[%clk 0:00:09]}  Qcc2+ {[%clk 0:00:33]} 70. Ka3 {[%clk 0:00:10]}  Qca2# {[%clk 0:00:32]} 0-1


[Site "https://www.chess.com"]